Department Family,Entity,Supplier,Date,Invoice Id,Line Amount SUM,Project#,Po Budget Centre,Expense Area,Po Subjective,Expense Type,Description,Vendor Type Lookup Code,Wga Ref
Department of Health,Public Health England,JONES LANG LASALLE,03-Jan-2017,5824388,5900.00,NULL,HOX1,FCD: Chancellor Court Oxford,66105,Rent,6544751,VENDOR,NOT CGA
Department of Health,Public Health England,JONES LANG LASALLE,03-Jan-2017,5824388,29500.00,NULL,HOX1,FCD: Chancellor Court Oxford,66105,Rent,"Invoice 736387 - Accommodaiton costs (RENT) for4150 Chancellor Court, John Smith Drive, Oxford Business Park South, Oxford (period 25/12/2016 to 24/3/2017)",VENDOR,NOT CGA
Department of Health,Public Health England,M&C SAATCHI (UK) LTD,03-Jan-2017,5846246,13074.40,NULL,UMB5,MKT: Ageing Well: AMR,59027,Social Marketing - Creative development,6547229,VENDOR,NOT CGA
Department of Health,Public Health England,M&C SAATCHI (UK) LTD,03-Jan-2017,5846246,65372.00,NULL,UMB5,MKT: Ageing Well: AMR,59027,Social Marketing - Creative development,AMR Creative cost,VENDOR,NOT CGA
Department of Health,Public Health England,DST APPLIED ANALYTICS LIMITED,04-Jan-2017,5800117,4433.00,NULL,UMB1,MKT: Contact Centre,59103,Social Marketing - Digital,6535955 F/B 546623,VENDOR,NOT CGA
Department of Health,Public Health England,DST APPLIED ANALYTICS LIMITED,04-Jan-2017,5800117,22165.00,NULL,UMB1,MKT: Contact Centre,59103,Social Marketing - Digital,DST data base management monthly fees November/December 16/17,VENDOR,NOT CGA
Department of Health,Public Health England,PORTSMOUTH HOSPITAL NHS TRUST,04-Jan-2017,5803438,100728.00,NULL,UFA2,HWB: NCS Breast,54360,Other Outsourced Services,6341379 FB,PUBLIC SECTOR COMPANIES,NHTRHUNFT
Department of Health,Public Health England,CARDIFF & VALE UNIVERSITY LOCAL HEALTH BOARD,04-Jan-2017,5815143,185500.00,NULL,MLA7,HP: NPIS,54310,Sub-contracted Healthcare Advice,NPIS Services to PHE from Cardiff & Vale University Local Health Board for period Q3 Oct - Dec 2016,NHS,WNHT02
Department of Health,Public Health England,STOKE ON TRENT CITY COUNCIL,04-Jan-2017,5815168,35484.00,NULL,SPA1,COO: Deputy Chief Executive Office,28012,LA Clinical Excellence Awards,NATIONAL BRONZE CEA 2016/17,TAX AUTHORITY,E3401
Department of Health,Public Health England,M&C SAATCHI (UK) LTD,04-Jan-2017,5821266,30179.00,NULL,UMA3,MKT: Starting Well: Change4Life,59028,Social Marketing - PR,6544215,VENDOR,NOT CGA
Department of Health,Public Health England,M&C SAATCHI (UK) LTD,04-Jan-2017,5821266,150895.00,NULL,UMA3,MKT: Starting Well: Change4Life,59028,Social Marketing - PR,C4L Jan 2017 consumer engagement,VENDOR,NOT CGA
Department of Health,Public Health England,UNIVERSITY HOSPITAL BIRMINGHAM NHS FOUNDATION TRUST,04-Jan-2017,5823459,1200.00,NULL,FEJ1,NIS: UK NEQAS,47240,Other Subcontracted Lab Servs,Interpretative Comments maintenance 2016-17,NHS,NHTRRKFT
Department of Health,Public Health England,UNIVERSITY HOSPITAL BIRMINGHAM NHS FOUNDATION TRUST,04-Jan-2017,5823459,2400.00,NULL,FEJ1,NIS: UK NEQAS,47240,Other Subcontracted Lab Servs,Web service maintenance 2016-17,NHS,NHTRRKFT
Department of Health,Public Health England,UNIVERSITY HOSPITAL BIRMINGHAM NHS FOUNDATION TRUST,04-Jan-2017,5823459,5520.00,NULL,FEJ1,NIS: UK NEQAS,47240,Other Subcontracted Lab Servs,6542040,NHS,NHTRRKFT
Department of Health,Public Health England,UNIVERSITY HOSPITAL BIRMINGHAM NHS FOUNDATION TRUST,04-Jan-2017,5823459,24000.00,NULL,FEJ1,NIS: UK NEQAS,47240,Other Subcontracted Lab Servs,Wolfson EQA Software (WES) system support 2016-17,NHS,NHTRRKFT
Department of Health,Public Health England,NORTH BRISTOL NHS TRUST,04-Jan-2017,5824154,24692.00,NULL,UFA2,HWB: NCS Breast,54360,Other Outsourced Services,North Bristol NHS Trust - Breast Age Extension 2016-17 Avon LAV. Fixed Price SLA - Oct 2016,NHS,NHTRVJNFT
Department of Health,Public Health England,NORTH BRISTOL NHS TRUST,04-Jan-2017,5824154,24692.00,NULL,UFA2,HWB: NCS Breast,54360,Other Outsourced Services,North Bristol NHS Trust - Breast Age Extension 2016-17 Avon LAV. Fixed Price SLA - Nov 2016,NHS,NHTRVJNFT
Department of Health,Public Health England,NORTH BRISTOL NHS TRUST,04-Jan-2017,5824154,24692.00,NULL,UFA2,HWB: NCS Breast,54360,Other Outsourced Services,North Bristol NHS Trust - Breast Age Extension 2016-17 Avon LAV. Fixed Price SLA - Dec 2016,NHS,NHTRVJNFT
Department of Health,Public Health England,NHS CONFEDERATION,04-Jan-2017,5824324,11000.00,NULL,VEA7,NIS: Vaccines and Countermeasures C&A Programmes,64105,Advertising (non recruitment),6527838,NHS,NOT CGA
Department of Health,Public Health England,NHS CONFEDERATION,04-Jan-2017,5824324,55000.00,NULL,VEA7,NIS: Vaccines and Countermeasures C&A Programmes,64105,Advertising (non recruitment),PSBC/PCOE No:6753 - NHS Flu Fighters Campaign 2016-17,NHS,NOT CGA
Department of Health,Public Health England,EDF ENERGY,04-Jan-2017,5824365,20525.27,NULL,JSR0,NIS: Porton Site Services Facilities Project Centre,66410,Electricity,ELECTRICITY 01/11/16 - 30/11/16 CENTRE FOR EMERGENCY PREP & RESP PORTON DOWN SP4 0JG,VENDOR,NOT CGA
Department of Health,Public Health England,EDF ENERGY,04-Jan-2017,5824365,102626.36,NULL,JSR0,NIS: Porton Site Services Facilities Project Centre,66410,Electricity,"Supply of Electricity for PHE Porton Down, April 16 - March 17.",VENDOR,NOT CGA
Department of Health,Public Health England,EDF ENERGY,04-Jan-2017,5824366,72068.26,NULL,GGM1,NIS: Colindale Estates Management,66410,Electricity,ELECTRICITY 01/11/16 - 30/11/16 CENTRE FOR INGECTIONS2 COLINDALE NW9 5HT,VENDOR,NOT CGA
Department of Health,Public Health England,SWEETT (UK) LIMITED,04-Jan-2017,5824467,12053.40,110297,ZZZA,Balance Sheet,93365,AUC - Contract Services,6503014,VENDOR,NOT CGA
Department of Health,Public Health England,SWEETT (UK) LIMITED,04-Jan-2017,5824467,60267.00,110297,ZZZA,Balance Sheet,93365,AUC - Contract Services,Provision of Programme Management Support Office as detailed in the Service Provider Enquiry (15/003/PMSO/SPE/001) to December 2017. Core Services as per Sweett Service Delivery Plan v0.3. All T&Cs set out in SPE. For commission phase 1.,VENDOR,NOT CGA
Department of Health,Public Health England,HARLOW PRINTING LTD,04-Jan-2017,5824566,9498.41,NULL,UFA6,HWB: Cancer Screening Leaflets,64405,Promotional Material and Events,LEAFLETS - HARLOW -295680- NHS Cervical Screening  helping you decide - 1975000 copies more additional costs,VENDOR,NOT CGA
Department of Health,Public Health England,HARLOW PRINTING LTD,04-Jan-2017,5824566,17274.68,NULL,UFA6,HWB: Cancer Screening Leaflets,64405,Promotional Material and Events,6530024,VENDOR,NOT CGA
Department of Health,Public Health England,HARLOW PRINTING LTD,04-Jan-2017,5824566,21180.00,NULL,UFA6,HWB: Cancer Screening Leaflets,64405,Promotional Material and Events,LEAFLETS - HARLOW -277926 - NHS Cervical Screening  helping you decide - 1975000 copies additional costs,VENDOR,NOT CGA
Department of Health,Public Health England,HARLOW PRINTING LTD,04-Jan-2017,5824566,55695.00,NULL,UFA6,HWB: Cancer Screening Leaflets,64405,Promotional Material and Events,"LEAFLETS - HARLOW -277916 - NHS Cervical Screening  helping you decide - 1,975,000 copies",VENDOR,NOT CGA
Department of Health,Public Health England,NHS SUPPLY CHAIN - VACCINES,04-Jan-2017,5826084,19000000.00,NULL,ZZZA,Balance Sheet,96293,NHSSC account: C&A vaccines,NHS SUPPLY CHAIN TFR OF FUNDS FOR JAN-17,NHS,DHCORE
Department of Health,Public Health England,NHS SUPPLY CHAIN - PANFLU,04-Jan-2017,5826085,16000000.00,NULL,ZZZA,Balance Sheet,96292,NHSSC account: Panflu,NHS SUPPLY CHAIN TRF OF FUNDS FOR JAN-17,NHS,DHCORE
Department of Health,Public Health England,ROYAL SURREY COUNTY HOSPITAL,04-Jan-2017,5829147,128530.21,NULL,UFA2,HWB: NCS Breast,54360,Other Outsourced Services,Royal Surrey County Hosptials NHS Foundation trust - Part B services - National Co-ordination centre for physics of Mammography for breast screening programme,NHS,NHTRA2FT
Department of Health,Public Health England,EMCOR GROUP UK PLC,04-Jan-2017,5839253,11157.15,NULL,JSR0,NIS: Porton Site Services Facilities Project Centre,54345,Other Subcontracted Services,6546295,VENDOR,NOT CGA
Department of Health,Public Health England,EMCOR GROUP UK PLC,04-Jan-2017,5839253,55785.77,NULL,JSR0,NIS: Porton Site Services Facilities Project Centre,54345,Other Subcontracted Services,"Soft Services Baseline Contract, April 2016 onwards",VENDOR,NOT CGA
Department of Health,Public Health England,CARAT A TRADING DIV OF DENTSU AEGIS UK LIMITED,04-Jan-2017,5839311,7781.13,NULL,UMB7,MKT: Winter: Flu and Winter Pressures,59103,Social Marketing - Digital,6533548,VENDOR,NOT CGA
Department of Health,Public Health England,CARAT A TRADING DIV OF DENTSU AEGIS UK LIMITED,04-Jan-2017,5839311,38942.30,NULL,UMB7,MKT: Winter: Flu and Winter Pressures,59103,Social Marketing - Digital,RM1051 CARAT Winter/Flu Digital/Biddible,VENDOR,NOT CGA
Department of Health,Public Health England,CARAT A TRADING DIV OF DENTSU AEGIS UK LIMITED,04-Jan-2017,5839313,10287.24,NULL,UMB7,MKT: Winter: Flu and Winter Pressures,59008,Social Marketing Advertising,6537505,VENDOR,NOT CGA
Department of Health,Public Health England,CARAT A TRADING DIV OF DENTSU AEGIS UK LIMITED,04-Jan-2017,5839313,51484.76,NULL,UMB7,MKT: Winter: Flu and Winter Pressures,59008,Social Marketing Advertising,RM1051 CARAT- Winter Biddable,VENDOR,NOT CGA
Department of Health,Public Health England,CARAT A TRADING DIV OF DENTSU AEGIS UK LIMITED,04-Jan-2017,5839322,6011.67,NULL,UMB7,MKT: Winter: Flu and Winter Pressures,59008,Social Marketing Advertising,6533323,VENDOR,NOT CGA
Department of Health,Public Health England,CARAT A TRADING DIV OF DENTSU AEGIS UK LIMITED,04-Jan-2017,5839322,30081.15,NULL,UMB7,MKT: Winter: Flu and Winter Pressures,59008,Social Marketing Advertising,RM1051- CARAT Winter- Media partnership,VENDOR,NOT CGA
Department of Health,Public Health England,CARAT A TRADING DIV OF DENTSU AEGIS UK LIMITED,04-Jan-2017,5839324,7201.34,NULL,UMB7,MKT: Winter: Flu and Winter Pressures,59008,Social Marketing Advertising,6532651,VENDOR,NOT CGA
Department of Health,Public Health England,CARAT A TRADING DIV OF DENTSU AEGIS UK LIMITED,04-Jan-2017,5839324,36041.64,NULL,UMB7,MKT: Winter: Flu and Winter Pressures,59008,Social Marketing Advertising,RM1051 - CARAT Winter PRESS 2016,VENDOR,NOT CGA
Department of Health,Public Health England,CARAT A TRADING DIV OF DENTSU AEGIS UK LIMITED,04-Jan-2017,5839332,121128.35,NULL,UMB7,MKT: Winter: Flu and Winter Pressures,59008,Social Marketing Advertising,6533336,VENDOR,NOT CGA
Department of Health,Public Health England,CARAT A TRADING DIV OF DENTSU AEGIS UK LIMITED,04-Jan-2017,5839332,606229.11,NULL,UMB7,MKT: Winter: Flu and Winter Pressures,59008,Social Marketing Advertising,RM1051 - CARAT Winter TV December 2016,VENDOR,NOT CGA
Department of Health,Public Health England,NAFIC NFSW,04-Jan-2017,5839411,10393.75,NULL,BBF7,NIS: York FWE Site Overheads,66105,Rent,6546077,COMPANY,NOT CGA
Department of Health,Public Health England,NAFIC NFSW,04-Jan-2017,5839411,11579.75,NULL,BBF7,NIS: York FWE Site Overheads,66105,Rent,York FWE Blocks 9&10 - PHE2 Principal Rent - Q4 25th December 2016 - 24th March 2017,COMPANY,NOT CGA
Department of Health,Public Health England,NAFIC NFSW,04-Jan-2017,5839411,40389.00,NULL,BBF7,NIS: York FWE Site Overheads,66105,Rent,York FWE Blocks 9&10 - PHE2 Service Charge - Q4 25th December 2016 - 24th March 2017,COMPANY,NOT CGA
Department of Health,Public Health England,UCL CONSULTANTS LIMITED,04-Jan-2017,5846109,5000.00,NULL,UPA1,HWB: HP Centre Wellbeing & MH,54360,Other Outsourced Services,6512087,VENDOR,NOT CGA
Department of Health,Public Health England,UCL CONSULTANTS LIMITED,04-Jan-2017,5846109,25000.00,NULL,UPA1,HWB: HP Centre Wellbeing & MH,54360,Other Outsourced Services,PHE's contractual commitment towards addressing health equalities with the UCL Institute of Health Equity,VENDOR,NOT CGA
Department of Health,Public Health England,CRANFIELD UNIVERSITY,04-Jan-2017,5846110,27000.00,110685,JMY0,HP: ERD Science and Technology Project Centre,35305,Training,"PhD fees for 2016-17, Cranfield University.  Invoice no. 1476125",VENDOR,NOT CGA
Department of Health,Public Health England,CONDOR INSTRUMENTS LIMITED - EPP,05-Jan-2017,5821136,1100.00,110589,ZZZA,Balance Sheet,93340,AUC - Plant & Equipment,Shipment by Quotation 2016110304,OVERSEAS,NOT CGA
Department of Health,Public Health England,CONDOR INSTRUMENTS LIMITED - EPP,05-Jan-2017,5821136,33112.00,110589,ZZZA,Balance Sheet,93340,AUC - Plant & Equipment,ActiTrust wrist actimeters with light filters and Actidock USB adapters by Quotation 2016110304,OVERSEAS,NOT CGA
Department of Health,Public Health England,NAZ PROJECT LONDON,06-Jan-2017,5776969,71300.40,NULL,UIB2,HWB: SH&HIV: Innovation Fund,54360,Other Outsourced Services,ECM 4274 - Innovation Fund 2016/17 - Community Conversations: Reshaping the African Dialogue. HEALTH PROMOTION VAT RECLAIMABLE,VENDOR,NOT CGA
Department of Health,Public Health England,T SQUARED P2 LIMITED,09-Jan-2017,5749168,5630.19,108908,ZZZA,Balance Sheet,93335,AUC - Land & Buildings,6527340,NULL,NOT CGA
Department of Health,Public Health England,T SQUARED P2 LIMITED,09-Jan-2017,5749168,28150.93,108908,ZZZA,Balance Sheet,93335,AUC - Land & Buildings,T-Squared: Enabling Builders Work -  Lab 027/029/031 (for RP),NULL,NOT CGA
Department of Health,Public Health England,FLEXIFORM BUSINESS FURNITURE LTD,09-Jan-2017,5792992,78.00,109531,ZZZA,Balance Sheet,93343,"AUC - Furniture, Fixtures & Fittings","CORRECT DELIVERY ADDRESS:As above -GRESHAM - TOTNES (109531): Description:Analogue clock          AC001          	Wall clock 300mm diameter, with second hand, quartz.  White face, black surround.",VENDOR,NOT CGA
Department of Health,Public Health England,FLEXIFORM BUSINESS FURNITURE LTD,09-Jan-2017,5792992,154.00,109531,ZZZA,Balance Sheet,93343,"AUC - Furniture, Fixtures & Fittings","CORRECT DELIVERY ADDRESS:As above -GRESHAM - TOTNES (109531): Description:Digital clock                  DC001	Radio controlled LCD clock, metallic grey rectangle face.  Features time, date and temperature.  Can be wall or desk mounted.  Ad",VENDOR,NOT CGA
Department of Health,Public Health England,FLEXIFORM BUSINESS FURNITURE LTD,09-Jan-2017,5792992,219.20,109531,ZZZA,Balance Sheet,93343,"AUC - Furniture, Fixtures & Fittings","CORRECT DELIVERY ADDRESS:As above -GRESHAM - TOTNES (109531): Description:Bistro Chair                 BSC	Four leg caf� chair, with wooden seat in natural beech ply with high resistance stain finish. Stacking 4 leg frame (stackable up to 4",VENDOR,NOT CGA
Department of Health,Public Health England,FLEXIFORM BUSINESS FURNITURE LTD,09-Jan-2017,5792992,279.00,109531,ZZZA,Balance Sheet,93343,"AUC - Furniture, Fixtures & Fittings","CORRECT DELIVERY ADDRESS:As above -GRESHAM - TOTNES (109531): Description:ADT14D	1400mm round table, 4 legged frame to accommodate larger diameter top. Cable grommet",VENDOR,NOT CGA
Department of Health,Public Health England,FLEXIFORM BUSINESS FURNITURE LTD,09-Jan-2017,5792992,299.00,109531,ZZZA,Balance Sheet,93343,"AUC - Furniture, Fixtures & Fittings","CORRECT DELIVERY ADDRESS:Public Health England, Follaton House, Plymouth Road, Totnes, Devon, TQ9 5NE -GRESHAM - TOTNES (109531): Description:Pico 1400 x 800 side to side	Group of 2 desks side to side 1400 x 800",VENDOR,NOT CGA
Department of Health,Public Health England,FLEXIFORM BUSINESS FURNITURE LTD,09-Jan-2017,5792992,396.00,109531,ZZZA,Balance Sheet,93343,"AUC - Furniture, Fixtures & Fittings","CORRECT DELIVERY ADDRESS:As above -GRESHAM - TOTNES (109531): Description:FST1017101PO2S	 - 1017mm high with 2x adjustable shelves and base as 3rd level",VENDOR,NOT CGA
Department of Health,Public Health England,FLEXIFORM BUSINESS FURNITURE LTD,09-Jan-2017,5792992,417.00,109531,ZZZA,Balance Sheet,93343,"AUC - Furniture, Fixtures & Fittings","CORRECT DELIVERY ADDRESS:Public Health England, Follaton House, Plymouth Road, Totnes, Devon, TQ9 5NE -GRESHAM - TOTNES (109531): Description:Pico 1400 x 800mm PBD1408	stand alone desk 1400 x 800 with modesty panel",VENDOR,NOT CGA
Department of Health,Public Health England,FLEXIFORM BUSINESS FURNITURE LTD,09-Jan-2017,5792992,501.00,109531,ZZZA,Balance Sheet,93343,"AUC - Furniture, Fixtures & Fittings","CORRECT DELIVERY ADDRESS:As above -GRESHAM - TOTNES (109531): Description:ADT08D -  800mm diameter, no cable grommet",VENDOR,NOT CGA
Department of Health,Public Health England,FLEXIFORM BUSINESS FURNITURE LTD,09-Jan-2017,5792992,512.00,109531,ZZZA,Balance Sheet,93343,"AUC - Furniture, Fixtures & Fittings","CORRECT DELIVERY ADDRESS:As above -GRESHAM - TOTNES (109531): Description:Smart Boxes	Smart Boxes for Lockers",VENDOR,NOT CGA
Department of Health,Public Health England,FLEXIFORM BUSINESS FURNITURE LTD,09-Jan-2017,5792992,644.70,109531,ZZZA,Balance Sheet,93343,"AUC - Furniture, Fixtures & Fittings","CORRECT DELIVERY ADDRESS:As above -GRESHAM - TOTNES (109531): Description:Power Under Desk  PUD4GBK	Black under desk 4 gang socket block. Fused to 3.15amp. Male entry and female exit. Complete with 3m 13amp plug starter lead",VENDOR,NOT CGA
Department of Health,Public Health England,FLEXIFORM BUSINESS FURNITURE LTD,09-Jan-2017,5792992,697.00,109531,ZZZA,Balance Sheet,93343,"AUC - Furniture, Fixtures & Fittings","CORRECT DELIVERY ADDRESS:As above -GRESHAM - TOTNES (109531): Description:Meeting Chairs        AR1A	Steel cantilever frame meeting chair. Silver cantilever frame with upholstery in Phoenix Calypso fabric. Without  arms",VENDOR,NOT CGA
Department of Health,Public Health England,FLEXIFORM BUSINESS FURNITURE LTD,09-Jan-2017,5792992,720.00,109531,ZZZA,Balance Sheet,93343,"AUC - Furniture, Fixtures & Fittings",CORRECT DELIVERY ADDRESS:As above -GRESHAM - TOTNES (109531): Description:Coat stand                    COATSTAND Chrome coat and umbrella stand,VENDOR,NOT CGA
Department of Health,Public Health England,FLEXIFORM BUSINESS FURNITURE LTD,09-Jan-2017,5792992,844.00,109531,ZZZA,Balance Sheet,93343,"AUC - Furniture, Fixtures & Fittings",CORRECT DELIVERY ADDRESS:As above -GRESHAM - TOTNES (109531): Description:Mobile Meeting table ADT1507FT1500mm x 750mm mobile meeting table. Flip top. Linking on all sides. Locking castors. Straight edge. White MFC top with RAL9006 frame. p,VENDOR,NOT CGA
Department of Health,Public Health England,FLEXIFORM BUSINESS FURNITURE LTD,09-Jan-2017,5792992,892.40,109531,ZZZA,Balance Sheet,93343,"AUC - Furniture, Fixtures & Fittings","CORRECT DELIVERY ADDRESS:As above -GRESHAM - TOTNES (109531): Description:Bar Stool                     PEAK	Barstool no arms with seat in laminated beech and birch plywood backrest.  Frame in RAL 9006 or stone. 12.7mm solid steel rod frame",VENDOR,NOT CGA
Department of Health,Public Health England,FLEXIFORM BUSINESS FURNITURE LTD,09-Jan-2017,5792992,896.00,109531,ZZZA,Balance Sheet,93343,"AUC - Furniture, Fixtures & Fittings","CORRECT DELIVERY ADDRESS:As above -GRESHAM - TOTNES (109531): Description:FST1200102PO2S	 -  1200mm high with 3 x plain adjustable shelves using base as 4th level",VENDOR,NOT CGA
Department of Health,Public Health England,FLEXIFORM BUSINESS FURNITURE LTD,09-Jan-2017,5792992,908.00,109531,ZZZA,Balance Sheet,93343,"AUC - Furniture, Fixtures & Fittings",CORRECT DELIVERY ADDRESS:As above -GRESHAM - TOTNES (109531): Description:Mobile Meeting table ADT1507FT1500mm x 750mm mobile meeting table. Flip top. Linking on all sides. Locking castors. Straight edge. White MFC top with RAL9006 frame.,VENDOR,NOT CGA
Department of Health,Public Health England,FLEXIFORM BUSINESS FURNITURE LTD,09-Jan-2017,5792992,989.00,109531,ZZZA,Balance Sheet,93343,"AUC - Furniture, Fixtures & Fittings","CORRECT DELIVERY ADDRESS:Public Health England, Follaton House, Plymouth Road, Totnes, Devon, TQ9 5NE -GRESHAM - TOTNES (109531): Description:Pico 1400 x 800mm PBD4216	Group of 8 desks",VENDOR,NOT CGA
Department of Health,Public Health England,FLEXIFORM BUSINESS FURNITURE LTD,09-Jan-2017,5792992,1057.00,109531,ZZZA,Balance Sheet,93343,"AUC - Furniture, Fixtures & Fittings","CORRECT DELIVERY ADDRESS:As above -GRESHAM - TOTNES (109531): Description:Power on desk   POD2GSL	Two gang desk top mounted socket block. Fused to 3.15amp. Complete with 800mm feeder lead to link to under desk unit.",VENDOR,NOT CGA
Department of Health,Public Health England,FLEXIFORM BUSINESS FURNITURE LTD,09-Jan-2017,5792992,1120.00,109531,ZZZA,Balance Sheet,93343,"AUC - Furniture, Fixtures & Fittings","CORRECT DELIVERY ADDRESS:As above -GRESHAM - TOTNES (109531): Description:Height Adjustment Kit - Higher version	Hand crank adjustment kit to enable the top to be adjusted upwards and back to the original position. Can be fitted to any desk",VENDOR,NOT CGA
Department of Health,Public Health England,FLEXIFORM BUSINESS FURNITURE LTD,09-Jan-2017,5792992,1125.00,109531,ZZZA,Balance Sheet,93343,"AUC - Furniture, Fixtures & Fittings","CORRECT DELIVERY ADDRESS:As above -GRESHAM - TOTNES (109531): Description:FSL201008	2000 high x 1000 locker unit. All steel. Complete with8 compartments, post slots and fixed shelf. Riveted carcase. RAL9016 white",VENDOR,NOT CGA
Department of Health,Public Health England,FLEXIFORM BUSINESS FURNITURE LTD,09-Jan-2017,5792992,1140.00,109531,ZZZA,Balance Sheet,93343,"AUC - Furniture, Fixtures & Fittings","CORRECT DELIVERY ADDRESS:As above -GRESHAM - TOTNES (109531): Description:Steel Storage - 800mm wide FST2007084PO2S	Steel storage unit, fully welded carcase. Floor levelling feet. Sideways opening tambour door. Lockable with folding keys. M",VENDOR,NOT CGA
Department of Health,Public Health England,FLEXIFORM BUSINESS FURNITURE LTD,09-Jan-2017,5792992,1236.25,109531,ZZZA,Balance Sheet,93343,"AUC - Furniture, Fixtures & Fittings","CORRECT DELIVERY ADDRESS:Public Health England, Follaton House, Plymouth Road, Totnes, Devon, TQ9 5NE -GRESHAM - TOTNES (109531): Description:Pico 1400 x 800mm PBD5616",VENDOR,NOT CGA
Department of Health,Public Health England,FLEXIFORM BUSINESS FURNITURE LTD,09-Jan-2017,5792992,1474.00,109531,ZZZA,Balance Sheet,93343,"AUC - Furniture, Fixtures & Fittings","CORRECT DELIVERY ADDRESS:Public Health England, Follaton House, Plymouth Road, Totnes, Devon, TQ9 5NE -GRESHAM - TOTNES (109531): Description:Pico 1400 x 800mm PBD2816	Group of 6 desks as above",VENDOR,NOT CGA
Department of Health,Public Health England,FLEXIFORM BUSINESS FURNITURE LTD,09-Jan-2017,5792992,1740.00,109531,ZZZA,Balance Sheet,93343,"AUC - Furniture, Fixtures & Fittings","CORRECT DELIVERY ADDRESS:Public Health England, Follaton House, Plymouth Road, Totnes, Devon, TQ9 5NE -GRESHAM - TOTNES (109531): Description:Desk Screens 1400mm PSCR1403	As above but 1400mm wide",VENDOR,NOT CGA
Department of Health,Public Health England,FLEXIFORM BUSINESS FURNITURE LTD,09-Jan-2017,5792992,1842.50,109531,ZZZA,Balance Sheet,93343,"AUC - Furniture, Fixtures & Fittings","CORRECT DELIVERY ADDRESS:As above -GRESHAM - TOTNES (109531): Description:Meeting Chairs        AR1A	Steel cantilever frame meeting chair. Silver cantilever frame with upholstery in Phoenix Calypso fabric. With arms",VENDOR,NOT CGA
Department of Health,Public Health England,FLEXIFORM BUSINESS FURNITURE LTD,09-Jan-2017,5792992,2062.95,109531,ZZZA,Balance Sheet,93343,"AUC - Furniture, Fixtures & Fittings","CORRECT DELIVERY ADDRESS:As above -GRESHAM - TOTNES (109531): Description:Tub Chair                    HAY01	Hay swivel upholstered armchair on flat 4 star die cast aluminium base.  Seat upholstered in fabric, choice of Arithmetic AK012 (bu",VENDOR,NOT CGA
Department of Health,Public Health England,FLEXIFORM BUSINESS FURNITURE LTD,09-Jan-2017,5792992,2142.00,109531,ZZZA,Balance Sheet,93343,"AUC - Furniture, Fixtures & Fittings","CORRECT DELIVERY ADDRESS:As above -GRESHAM - TOTNES (109531): Description:FST0740081PO2S	As above but 740mm high (to match desk height) 1x adjustable shelves and base as 2nd level  Includes white MFC top to match desks",VENDOR,NOT CGA
Department of Health,Public Health England,FLEXIFORM BUSINESS FURNITURE LTD,09-Jan-2017,5792992,3960.00,109531,ZZZA,Balance Sheet,93343,"AUC - Furniture, Fixtures & Fittings","CORRECT DELIVERY ADDRESS:As above -GRESHAM - TOTNES (109531): Description:FST1200082PO2S	- 1200mm high with 4 x adjustable shelves",VENDOR,NOT CGA
Department of Health,Public Health England,FLEXIFORM BUSINESS FURNITURE LTD,09-Jan-2017,5792992,7361.20,109531,ZZZA,Balance Sheet,93343,"AUC - Furniture, Fixtures & Fittings",6531165 ITEMS NOT ON PO,VENDOR,NOT CGA
Department of Health,Public Health England,FLEXIFORM BUSINESS FURNITURE LTD,09-Jan-2017,5792992,8460.00,109531,ZZZA,Balance Sheet,93343,"AUC - Furniture, Fixtures & Fittings","CORRECT DELIVERY ADDRESS:As above -GRESHAM - TOTNES (109531): Description:Task chair -         DOHBA	""DO high back operators chair with height adjustable arms with 100mm of travel, black nylon base, gas lift providing 130mm travel. Synchron",VENDOR,NOT CGA
Department of Health,Public Health England,BIOMERIEUX LIMITED,09-Jan-2017,5818522,121290.00,109747,ZZZA,Balance Sheet,93340,AUC - Plant & Equipment,6507729,VENDOR,NOT CGA
Department of Health,Public Health England,BIOMERIEUX LIMITED,09-Jan-2017,5818522,606450.00,109747,ZZZA,Balance Sheet,93340,AUC - Plant & Equipment,Copan WASPlab equipment (ITT number 729),VENDOR,NOT CGA
Department of Health,Public Health England,LOTHIAN HEALTH BOARD,09-Jan-2017,5822354,151660.00,NULL,MLA7,HP: NPIS,54310,Sub-contracted Healthcare Advice,NPIS Services to PHE from Lothian Health Board for Q3 Oct - Dec 2016,NHS,NOT CGA
Department of Health,Public Health England,EMCOR GROUP UK PLC,09-Jan-2017,5839252,17257.47,NULL,JSR0,NIS: Porton Site Services Facilities Project Centre,54345,Other Subcontracted Services,6547078,VENDOR,NOT CGA
Department of Health,Public Health England,EMCOR GROUP UK PLC,09-Jan-2017,5839252,86287.35,NULL,JSR0,NIS: Porton Site Services Facilities Project Centre,54345,Other Subcontracted Services,"Soft Services Baseline Contract, Incinerator Operators & Environmental Services supplied by Contractor, Sep 2016 - March 2017",VENDOR,NOT CGA
Department of Health,Public Health England,HOLOGIC LTD,09-Jan-2017,5847259,432.00,NULL,BVY1,NIS: Bristol Lab,41115,Kits: Virology,PANTHER APTIMA GC Assay 100 Test Kit,VENDOR,NOT CGA
Department of Health,Public Health England,HOLOGIC LTD,09-Jan-2017,5847259,4406.40,NULL,BVY1,NIS: Bristol Lab,41115,Kits: Virology,6546440,VENDOR,NOT CGA
Department of Health,Public Health England,HOLOGIC LTD,09-Jan-2017,5847259,21600.00,NULL,BVY1,NIS: Bristol Lab,41115,Kits: Virology,PANTHER APTIMA COMBO 2 Assay 250 Test Kit,VENDOR,NOT CGA
Department of Health,Public Health England,ROYAL LIVERPOOL & BROADGREEN UNIVERSITY HOSPITAL NHS TRUST,09-Jan-2017,5851083,2062.40,NULL,UFA3,HWB: NCS Cervical,54360,Other Outsourced Services,Royal Liverpool & Broadgreen Hospitals NHST: HPV Primary Screening Services SLA 16-17 Admin Support,NULL,NHTRQ6NFT
Department of Health,Public Health England,ROYAL LIVERPOOL & BROADGREEN UNIVERSITY HOSPITAL NHS TRUST,09-Jan-2017,5851083,31350.00,NULL,UFA3,HWB: NCS Cervical,54360,Other Outsourced Services,Royal Liverpool & Broadgreen Hospitals NHST: HPV Primary Screening Services SLA 16-17 actual Screens,NULL,NHTRQ6NFT
Department of Health,Public Health England,ROYAL SURREY COUNTY HOSPITAL,09-Jan-2017,5851148,57844.79,NULL,UFA2,HWB: NCS Breast,54360,Other Outsourced Services,Royal Surrey County Hosptials NHS Foundation trust - Part B services - National Co-ordination centre for physics of Mammography for breast screening programme,NHS,NHTRA2FT
Department of Health,Public Health England,MORGAN SINDALL PROFESSIONAL SERVICES LTD,09-Jan-2017,5851386,5709.33,NULL,JSC4,NIS: Porton Capital Project Management,68440,Reactive Maintenance,6515499,VENDOR,NOT CGA
Department of Health,Public Health England,MORGAN SINDALL PROFESSIONAL SERVICES LTD,09-Jan-2017,5851386,28546.67,NULL,JSC4,NIS: Porton Capital Project Management,68440,Reactive Maintenance,"Provide contract PM staff supporting delivery of capital works projects at Porton, all costs to be capitalised.A new framework agreement to replace the existing f/work has been tendered with contract award Jun",VENDOR,NOT CGA
Department of Health,Public Health England,JENNOR (UK) LTD,09-Jan-2017,5851461,32162.35,109531,ZZZA,Balance Sheet,93335,AUC - Land & Buildings,6533332,VENDOR,NOT CGA
Department of Health,Public Health England,JENNOR (UK) LTD,09-Jan-2017,5851461,160811.77,109531,ZZZA,Balance Sheet,93335,AUC - Land & Buildings,"CORRECT DELIVERY ADDRESS: Public Health England SW,Follaton House,Plymouth Road,Totnes,Devon,TQ9 5NE - CDW - Totnes (109531):Description:�Refurbishment of PHE office area within Follaton House, Totnes in accordance with Contract Award",VENDOR,NOT CGA
Department of Health,Public Health England,DEPARTMENT FOR EDUCATION (DFE),09-Jan-2017,5851507,1500.00,NULL,AWS5,FCD: Citygate Newcastle,66130,Car Parking,"Q1 2016/17 Accommodation costs (CAR SPACES) for Citygate, Gallowgate, Newcastle upon Tyne",PUBLIC SECTOR COMPANIES,DES022
Department of Health,Public Health England,DEPARTMENT FOR EDUCATION (DFE),09-Jan-2017,5851507,1500.00,NULL,AWS5,FCD: Citygate Newcastle,66130,Car Parking,"Q3 2016/17 Accommodation costs (CAR SPACES) for Citygate, Gallowgate, Newcastle upon Tyne",PUBLIC SECTOR COMPANIES,DES022
Department of Health,Public Health England,DEPARTMENT FOR EDUCATION (DFE),09-Jan-2017,5851507,1500.00,NULL,AWS5,FCD: Citygate Newcastle,66130,Car Parking,"Q2 2016/17 Accommodation costs (CAR SPACES) for Citygate, Gallowgate, Newcastle upon Tyne",PUBLIC SECTOR COMPANIES,DES022
Department of Health,Public Health England,DEPARTMENT FOR EDUCATION (DFE),09-Jan-2017,5851507,1587.09,NULL,AWS5,FCD: Citygate Newcastle,68140,Sub-contracted Facilities Mgnt,"2015/16 Reconciliation Charges (FM Services) for Citygate, Gallowgate, Newcastle upon Tyne",PUBLIC SECTOR COMPANIES,DES022
Department of Health,Public Health England,DEPARTMENT FOR EDUCATION (DFE),09-Jan-2017,5851507,9192.26,NULL,AWS5,FCD: Citygate Newcastle,68140,Sub-contracted Facilities Mgnt,"Q2 2016/17 Accommodation costs (FM SERVICES) for Citygate, Gallowgate, Newcastle upon Tyne",PUBLIC SECTOR COMPANIES,DES022
Department of Health,Public Health England,DEPARTMENT FOR EDUCATION (DFE),09-Jan-2017,5851507,9192.26,NULL,AWS5,FCD: Citygate Newcastle,68140,Sub-contracted Facilities Mgnt,"Q1 2016/17 Accommodation costs (FM SERVICES) for Citygate, Gallowgate, Newcastle upon Tyne",PUBLIC SECTOR COMPANIES,DES022
Department of Health,Public Health England,DEPARTMENT FOR EDUCATION (DFE),09-Jan-2017,5851507,9192.26,NULL,AWS5,FCD: Citygate Newcastle,68140,Sub-contracted Facilities Mgnt,"Q3 2016/17 Accommodation costs (FM SERVICES) for Citygate, Gallowgate, Newcastle upon Tyne",PUBLIC SECTOR COMPANIES,DES022
Department of Health,Public Health England,DEPARTMENT FOR EDUCATION (DFE),09-Jan-2017,5851507,18645.74,NULL,AWS5,FCD: Citygate Newcastle,66110,Rates,"Q2 2016/17 Accommodation costs (RATES) for Citygate, Gallowgate, Newcastle upon Tyne",PUBLIC SECTOR COMPANIES,DES022
Department of Health,Public Health England,DEPARTMENT FOR EDUCATION (DFE),09-Jan-2017,5851507,18645.74,NULL,AWS5,FCD: Citygate Newcastle,66110,Rates,"Q3 2016/17 Accommodation costs (RATES) for Citygate, Gallowgate, Newcastle upon Tyne",PUBLIC SECTOR COMPANIES,DES022
Department of Health,Public Health England,DEPARTMENT FOR EDUCATION (DFE),09-Jan-2017,5851507,18645.75,NULL,AWS5,FCD: Citygate Newcastle,66110,Rates,"Q1 2016/17 Accommodation costs (RATES) for Citygate, Gallowgate, Newcastle upon Tyne",PUBLIC SECTOR COMPANIES,DES022
Department of Health,Public Health England,DEPARTMENT FOR EDUCATION (DFE),09-Jan-2017,5851507,26688.45,NULL,AWS5,FCD: Citygate Newcastle,66107,Property Service Charges,"Q3 2016/17 Accommodation costs (SERVICE CHARGE) for Citygate, Gallowgate, Newcastle upon Tyne",PUBLIC SECTOR COMPANIES,DES022
Department of Health,Public Health England,DEPARTMENT FOR EDUCATION (DFE),09-Jan-2017,5851507,26688.45,NULL,AWS5,FCD: Citygate Newcastle,66107,Property Service Charges,"Q1 2016/17 Accommodation costs (SERVICE CHARGE) for Citygate, Gallowgate, Newcastle upon Tyne",PUBLIC SECTOR COMPANIES,DES022
Department of Health,Public Health England,DEPARTMENT FOR EDUCATION (DFE),09-Jan-2017,5851507,26688.45,NULL,AWS5,FCD: Citygate Newcastle,66107,Property Service Charges,"Q2 2016/17 Accommodation costs (SERVICE CHARGE) for Citygate, Gallowgate, Newcastle upon Tyne",PUBLIC SECTOR COMPANIES,DES022
Department of Health,Public Health England,DEPARTMENT FOR EDUCATION (DFE),09-Jan-2017,5851507,47904.83,NULL,AWS5,FCD: Citygate Newcastle,66105,Rent,"Q2 2016/17 Accommodation costs (RENT) for Citygate, Gallowgate, Newcastle upon Tyne",PUBLIC SECTOR COMPANIES,DES022
Department of Health,Public Health England,DEPARTMENT FOR EDUCATION (DFE),09-Jan-2017,5851507,47904.83,NULL,AWS5,FCD: Citygate Newcastle,66105,Rent,"Q3 2016/17 Accommodation costs (RENT) for Citygate, Gallowgate, Newcastle upon Tyne",PUBLIC SECTOR COMPANIES,DES022
Department of Health,Public Health England,DEPARTMENT FOR EDUCATION (DFE),09-Jan-2017,5851507,47904.83,NULL,AWS5,FCD: Citygate Newcastle,66105,Rent,"Q1 2016/17 Accommodation costs (RENT) for Citygate, Gallowgate, Newcastle upon Tyne",PUBLIC SECTOR COMPANIES,DES022
Department of Health,Public Health England,LUTON & DUNSTABLE HOSPITAL NHS TRUST,09-Jan-2017,5853096,35281.00,NULL,UFA2,HWB: NCS Breast,54360,Other Outsourced Services,Luton & Dunstable NHS Foundation Trust - Breast Age Extension 2016-17 Beds & Herts (ELD). Fixed Price SLA - Dec 2016,NHS,NHTRC9FT
Department of Health,Public Health England,LUTON & DUNSTABLE HOSPITAL NHS TRUST,09-Jan-2017,5853096,35281.00,NULL,UFA2,HWB: NCS Breast,54360,Other Outsourced Services,Luton & Dunstable NHS Foundation Trust - Breast Age Extension 2016-17 Beds & Herts (ELD). Fixed Price SLA - Sept 2016,NHS,NHTRC9FT
Department of Health,Public Health England,LUTON & DUNSTABLE HOSPITAL NHS TRUST,09-Jan-2017,5853096,35281.00,NULL,UFA2,HWB: NCS Breast,54360,Other Outsourced Services,Luton & Dunstable NHS Foundation Trust - Breast Age Extension 2016-17 Beds & Herts (ELD). Fixed Price SLA - Oct 2016,NHS,NHTRC9FT
Department of Health,Public Health England,THE TAVISTOCK AND PORTMAN NHS FOUNDATION TRUST,09-Jan-2017,5853108,117825.10,NULL,UIA6,HWB: CYP&F: Family Nurse Partnership (FNP),54345,Other Subcontracted Services,Delivery of Family Nurse Partnership 2016-17 additional funds,NHS,NHTRNKFT
Department of Health,Public Health England,THE TAVISTOCK AND PORTMAN NHS FOUNDATION TRUST,09-Jan-2017,5853108,589127.00,NULL,UIA6,HWB: CYP&F: Family Nurse Partnership (FNP),54345,Other Subcontracted Services,Delivery of Family Nurse Partnership 2016-17 - Q4,NHS,NHTRNKFT
Department of Health,Public Health England,SANDWELL & WEST BIRMINGHAM HOSPITALS NHS TRUST,09-Jan-2017,5853119,25188.00,NULL,UFA2,HWB: NCS Breast,54360,Other Outsourced Services,"Sandwell and West Birmingham Hospitals NHST - Breast Age Extension 16-17 City, Sandwell & Walsall (MBD). Fixed Price SLA - Dec 2016",PUBLIC SECTOR COMPANIES,NHTRXKNFT
Department of Health,Public Health England,GLOUCESTERSHIRE HOSPITALS NHS FOUNDATION TRUST,09-Jan-2017,5854086,13888.00,NULL,UFA2,HWB: NCS Breast,54360,Other Outsourced Services,Gloucestershire Hospitals NHSFT: Breast Age Extension 16-17 Gloucestershire LGL. Fixed Price SLA - Dec 2016,NHS,NHTRTEFT
Department of Health,Public Health England,GLOUCESTERSHIRE HOSPITALS NHS FOUNDATION TRUST,09-Jan-2017,5854086,13888.00,NULL,UFA2,HWB: NCS Breast,54360,Other Outsourced Services,Gloucestershire Hospitals NHSFT: Breast Age Extension 16-17 Gloucestershire LGL. Fixed Price SLA - Oct 2016,NHS,NHTRTEFT
Department of Health,Public Health England,GLOUCESTERSHIRE HOSPITALS NHS FOUNDATION TRUST,09-Jan-2017,5854086,13888.00,NULL,UFA2,HWB: NCS Breast,54360,Other Outsourced Services,Gloucestershire Hospitals NHSFT: Breast Age Extension 16-17 Gloucestershire LGL. Fixed Price SLA - Nov 2016,NHS,NHTRTEFT
